bitfinex-derivatives/quotes_BTCF0:USTF0_20241013
["timestamp","ask_amount","ask_price","bid_price","bid_amount"]
[1728830166512,0.1124,62570.0,62569.0,0.1858765]
[1728830166719,0.1124,62570.0,62569.0,0.26582935]
[1728830166918,0.1124,62570.0,62569.0,0.26584383]
[1728830167108,0.19233,62570.0,62569.0,0.15988385]
[1728830168517,0.55313,62570.0,62569.0,0.15988385]
[1728830169624,0.3632,62570.0,62569.0,0.15988385]
[1728830169816,0.0024,62570.0,62569.0,0.15988385]
[1728830170016,0.0024,62570.0,62569.0,0.20890056]
[1728830170920,0.0148,62577.0,62569.0,1.20916098]
[1728830171223,0.0004,62578.0,62577.0,0.079921]
[1728830171425,0.0004,62578.0,62577.0,0.20889056]
[1728830171622,0.0004,62578.0,62577.0,0.18589429]
[1728830171826,0.0004,62578.0,62577.0,0.20888594]
[1728830172313,0.0004,62578.0,62577.0,0.19888957]
[1728830172521,0.0004,62578.0,62577.0,0.29471623]
[1728830173225,0.0004,62578.0,62577.0,0.29471386]
[1728830173428,0.0004,62578.0,62577.0,0.1996019]
[1728830173826,0.0024,62578.0,62577.0,0.2006019]
[1728830174130,0.0024,62578.0,62577.0,0.18689429]
[1728830174629,0.0024,62578.0,62577.0,0.28271858]
[1728830174821,0.0024,62578.0,62577.0,0.29071571]
[1728830175020,0.0024,62578.0,62577.0,0.19489142]
[1728830175429,0.0024,62578.0,62577.0,0.29067041]
[1728830176022,0.0024,62578.0,62577.0,0.20904287]
[1728830176223,0.0024,62578.0,62577.0,0.21988112]
[1728830176425,0.0024,62578.0,62577.0,0.24806106]
[1728830176632,0.0024,62578.0,62577.0,0.26920934]
[1728830176930,0.0024,62578.0,62577.0,0.27720595]
[1728830177129,0.0024,62578.0,62577.0,0.25721441]
[1728830177428,0.0024,62578.0,62577.0,0.277206]
[1728830177631,0.0024,62578.0,62577.0,0.24806021]
[1728830177929,0.0024,62578.0,62577.0,0.35293697]
[1728830178122,0.0024,62578.0,62577.0,0.24806021]
[1728830178932,0.0024,62578.0,62577.0,0.24877296]
[1728830179327,0.0024,62578.0,62577.0,0.24806021]
[1728830180033,0.00279746,62583.0,62577.0,1.32817296]
[1728830180328,0.0004,62583.0,62582.0,0.079915]
[1728830180530,0.0004,62583.0,62582.0,0.09290949]
[1728830180823,0.0004,62583.0,62582.0,0.12480949]
[1728830181331,0.0014,62583.0,62582.0,0.12480949]
[1728830181634,0.0014,62583.0,62582.0,0.18856751]
[1728830181930,0.0004,62583.0,62582.0,0.18856751]
[1728830182120,0.0014,62583.0,62582.0,0.18956751]
[1728830182427,0.0024,62583.0,62582.0,0.17657302]
[1728830182617,0.0024,62583.0,62582.0,0.12580873]
[1728830182820,0.0024,62583.0,62582.0,0.11781259]
[1728830183030,0.0024,62583.0,62582.0,0.12580877]
[1728830183229,0.0024,62583.0,62582.0,0.12680877]
[1728830186231,0.0024,62583.0,62582.0,0.113815]
[1728830186531,0.0024,62583.0,62582.0,0.12680899]
[1728830186934,0.1724,62583.0,62582.0,0.09490899]
[1728830187525,0.0024,62583.0,62582.0,0.20226039]
[1728830187732,0.1724,62583.0,62582.0,0.20226039]
[1728830188034,0.1714,62583.0,62582.0,0.20126039]
[1728830188228,0.1714,62583.0,62582.0,0.20326039]
[1728830188428,0.1724,62583.0,62582.0,0.20326039]
[1728830188827,0.1704,62583.0,62582.0,0.20026039]
[1728830189032,0.1724,62583.0,62582.0,0.20326039]
[1728830191633,0.252313,62583.0,62582.0,0.20326039]
[1728830191937,0.252313,62583.0,62582.0,0.17559061]
[1728830192131,0.252313,62583.0,62582.0,0.09590899]
[1728830192526,0.252313,62583.0,62582.0,0.01599399]
[1728830193735,0.252313,62583.0,62582.0,0.01599504]
[1728830193930,0.192313,62583.0,62582.0,0.09567666]
[1728830194127,0.192313,62583.0,62582.0,0.00799809]
[1728830194433,0.192313,62583.0,62582.0,0.09567663]
[1728830194638,0.192313,62583.0,62582.0,0.20472612]
[1728830195138,0.192313,62583.0,62582.0,0.09567663]
[1728830195436,0.192313,62583.0,62582.0,0.12504279]
[1728830195636,0.192313,62583.0,62582.0,0.11204778]
[1728830195932,0.192313,62583.0,62582.0,0.003]
[1728830195933,0.082313,62583.0,62582.0,0.003]
[1728830196342,0.079915,62582.0,62581.0,0.06379162]
[1728830196635,0.07992,62578.0,62577.0,0.0004]
[1728830196932,0.30032,62578.0,62577.0,0.0004]
[1728830197624,0.28632,62578.0,62577.0,0.0004]
[1728830198231,0.28732,62578.0,62577.0,0.0144]
[1728830198533,0.27432,62578.0,62577.0,0.0144]
[1728830199037,0.079926,62573.0,62572.0,0.0037]
[1728830199332,0.066929,62571.0,62570.0,0.0054]
[1728830199534,0.428129,62571.0,62570.0,0.0054]
[1728830201124,0.429129,62571.0,62570.0,0.0054]
[1728830201728,0.428129,62571.0,62570.0,0.0054]
[1728830201925,0.429129,62571.0,62570.0,0.0054]
[1728830202735,0.430129,62571.0,62570.0,0.05322345]
[1728830203531,0.45827618,62571.0,62570.0,0.0054]
[1728830203735,0.47948,62570.0,62557.0,0.07972979]
[1728830203936,0.079948,62556.0,62550.0,0.07972979]
[1728830204125,0.3608,62557.0,62544.0,0.09568654]
[1728830204126,0.0004,62551.0,62549.0,0.07972979]
[1728830204328,0.0004,62551.0,62544.0,0.09568654]
[1728830204329,0.079957,62549.0,62548.0,0.07972979]
[1728830204631,0.190357,62549.0,62548.0,0.01300167]
[1728830204935,0.190357,62549.0,62547.0,0.079959]
[1728830205132,0.190357,62549.0,62548.0,0.01300176]
[1728830205334,0.300357,62549.0,62548.0,0.01300176]
[1728830205529,0.300357,62549.0,62548.0,0.09295976]
[1728830206035,0.251357,62549.0,62548.0,0.09295976]
[1728830206223,0.251357,62549.0,62548.0,0.01300176]
[1728830206427,0.251357,62549.0,62535.0,0.04059851]
[1728830206428,0.079958,62548.0,62535.0,0.09037251]
[1728830206639,0.1704,62536.0,62535.0,0.08237251]
[1728830206938,0.0004,62536.0,62535.0,0.27537864]
[1728830207140,0.0004,62536.0,62535.0,0.12547597]
[1728830207529,0.0004,62536.0,62535.0,0.13547865]
[1728830207932,0.0014,62536.0,62535.0,0.13547865]
[1728830208132,0.0014,62536.0,62535.0,0.30547865]
[1728830209431,0.0024,62536.0,62535.0,0.78519865]
[1728830209632,0.0024,62536.0,62535.0,1.37279746]
[1728830210031,0.0111,62543.0,62542.0,0.079966]
[1728830210237,0.1811,62551.0,62548.0,0.079958]
[1728830210441,0.17,62551.0,62548.0,0.079958]
[1728830211127,0.0004,62550.0,62548.0,0.079958]
[1728830211337,0.3612,62550.0,62548.0,0.079958]
[1728830211542,0.0014,62549.0,62548.0,0.079958]
[1728830213142,0.0024,62549.0,62548.0,0.079958]
[1728830219740,0.0014,62549.0,62548.0,0.079958]
[1728830220039,0.0024,62549.0,62548.0,0.079958]
[1728830222349,0.0024,62549.0,62548.0,0.08495844]
[1728830225548,0.082357,62549.0,62548.0,0.08495844]
[1728830225749,0.082357,62549.0,62548.0,0.079958]
[1728830225941,0.082357,62549.0,62548.0,0.00500072]
[1728830226141,0.0024,62549.0,62545.0,0.079962]
[1728830226361,0.1704,62546.0,62545.0,0.079962]
[1728830226544,0.250361,62546.0,62545.0,0.08496288]
[1728830227641,0.251361,62546.0,62545.0,0.08496288]
[1728830227840,0.0014,62546.0,62545.0,0.16469267]
[1728830228036,0.0014,62546.0,62545.0,0.19482226]
[1728830228250,0.0014,62546.0,62545.0,0.20282346]
[1728830229345,0.0024,62546.0,62545.0,0.20282346]
[1728830229738,0.0004,62549.0,62545.0,0.20282346]
[1728830229942,0.0004,62549.0,62548.0,0.610758]
[1728830230144,0.0004,62549.0,62548.0,0.73361946]
[1728830230451,0.0004,62549.0,62548.0,0.829306]
[1728830230748,0.0004,62549.0,62548.0,0.73361946]
[1728830231236,0.0004,62549.0,62548.0,0.82935762]
[1728830231237,0.0014,62549.0,62548.0,0.82935762]
[1728830231437,0.0014,62549.0,62548.0,0.73361946]
[1728830231849,0.0024,62549.0,62548.0,0.73361946]
[1728830232444,0.0024,62549.0,62548.0,0.56361946]
[1728830232646,0.0024,62549.0,62548.0,0.69465738]
[1728830233750,0.0024,62549.0,62548.0,0.69481828]
[1728830236650,0.0004,62558.0,62557.0,0.079947]
[1728830236855,0.0004,62558.0,62557.0,0.4910052]
[1728830237055,0.00239856,62563.0,62562.0,0.07994]
[1728830237249,0.00239856,62563.0,62562.0,0.6817982]
[1728830238255,0.00239856,62563.0,62562.0,0.68040966]
[1728830238654,0.00239856,62563.0,62562.0,0.69340878]
[1728830238857,0.0004,62571.0,62562.0,0.68040966]
[1728830239049,0.0004,62571.0,62570.0,0.07993]
[1728830239247,0.0004,62571.0,62570.0,0.18927026]
[1728830240263,0.0014,62571.0,62570.0,0.18927026]
[1728830240553,0.0024,62571.0,62570.0,0.07993]
[1728830241059,0.0014,62571.0,62570.0,0.07993]
[1728830241250,0.0024,62571.0,62570.0,0.07993]
[1728830243753,0.0024,62571.0,62570.0,0.26292646]
[1728830244459,0.0024,62571.0,62570.0,0.26292592]
[1728830246464,0.0004,62578.0,62577.0,0.079921]
[1728830246660,0.0004,62578.0,62577.0,0.26291656]
[1728830247966,0.0004,62578.0,62577.0,0.26291609]
[1728830248753,0.0014,62578.0,62577.0,0.26291609]
[1728830248954,0.0024,62578.0,62577.0,0.26291609]
[1728830249560,0.0024,62578.0,62577.0,0.09291609]
[1728830250062,0.0004,62582.0,62581.0,0.079916]
[1728830250367,0.0004,62582.0,62581.0,0.26291109]
[1728830250555,0.0004,62582.0,62581.0,0.09291109]
[1728830251356,0.0004,62582.0,62581.0,0.079916]
[1728830251562,0.0004,62582.0,62581.0,0.09290987]
[1728830251762,0.0004,62582.0,62581.0,0.09790771]
[1728830251966,0.0014,62582.0,62581.0,0.09291007]
[1728830252264,0.0024,62582.0,62581.0,0.09290999]
[1728830252566,0.0024,62582.0,62581.0,0.08491369]
[1728830253165,0.1724,62582.0,62581.0,0.08491369]
[1728830253366,0.1724,62582.0,62578.0,0.079919]
[1728830253567,0.0004,62579.0,62578.0,0.079919]
[1728830253958,0.080319,62579.0,62578.0,0.079919]
[1728830254459,0.07992,62578.0,62577.0,0.3612]
[1728830254670,0.25032,62578.0,62577.0,0.3612]
[1728830255968,0.25132,62578.0,62577.0,0.3612]
[1728830256660,0.25232,62578.0,62577.0,0.3612]
[1728830258971,0.25232,62578.0,62577.0,0.36619822]
[1728830259366,0.25232,62578.0,62577.0,0.3612]
[1728830259559,0.61312,62578.0,62577.0,0.0004]
[1728830259766,0.0024,62578.0,62577.0,0.080321]
[1728830259961,0.0024,62578.0,62577.0,0.0933163]
[1728830262167,0.0024,62578.0,62577.0,0.14391142]
[1728830262372,0.0024,62578.0,62577.0,0.15690516]
[1728830262668,0.0004,62582.0,62581.0,0.079916]
[1728830262863,0.0004,62582.0,62581.0,0.62370974]
[1728830263770,0.0014,62582.0,62581.0,0.62370974]
[1728830263970,0.0014,62582.0,62581.0,0.81169486]
[1728830264268,0.0014,62582.0,62581.0,0.73211275]
[1728830265463,0.0024,62582.0,62581.0,0.73211275]
[1728830265969,0.0024,62582.0,62581.0,0.73211252]
[1728830270776,0.0024,62582.0,62581.0,0.62370951]
[1728830272375,0.0024,62582.0,62581.0,0.70346422]
[1728830273066,0.0024,62582.0,62581.0,0.62370951]
[1728830273267,0.0024,62582.0,62581.0,0.70346422]
[1728830273473,0.0024,62582.0,62581.0,0.45370951]
[1728830273672,0.0024,62582.0,62581.0,0.62370951]
[1728830274470,0.0024,62582.0,62581.0,0.70346422]
[1728830275162,0.0024,62582.0,62581.0,0.81213007]
[1728830275778,0.0024,62582.0,62581.0,0.81214518]
[1728830275980,0.0024,62582.0,62581.0,0.81214687]
[1728830276872,0.0024,62582.0,62581.0,0.70346422]
[1728830277081,0.0024,62582.0,62581.0,0.73240713]
[1728830277281,0.0024,62582.0,62581.0,0.81222503]
[1728830277472,0.0024,62582.0,62581.0,0.8122262]
[1728830277671,0.0024,62582.0,62581.0,0.81222598]
[1728830277867,0.0024,62582.0,62581.0,0.7324083]
[1728830278573,0.0024,62582.0,62581.0,0.86192392]
[1728830279771,0.0024,62582.0,62581.0,0.7324083]
[1728830280480,0.0024,62582.0,62581.0,0.73240804]
[1728830281276,0.0024,62582.0,62581.0,0.73311822]
[1728830281476,0.0024,62582.0,62581.0,0.73240804]
[1728830281976,0.0024,62582.0,62581.0,0.62370925]
[1728830282981,0.0024,62582.0,62581.0,0.62370938]
[1728830286182,0.0024,62582.0,62581.0,0.86194519]
[1728830290279,0.0024,62582.0,62581.0,0.84895181]
[1728830290583,0.0024,62582.0,62581.0,0.86265652]
[1728830292878,0.0024,62582.0,62581.0,0.69265652]
[1728830293084,0.0024,62582.0,62581.0,0.56239544]
[1728830293276,0.112615,62582.0,62581.0,0.45372456]
[1728830293482,0.145315,62582.0,62581.0,0.3608]
[1728830296198,0.145315,62582.0,62570.0,0.06391281]
[1728830296199,0.079926,62573.0,62570.0,0.06391281]
[1728830296486,0.07993,62570.0,62569.0,0.06391281]
[1728830296678,0.079931,62569.0,62568.0,0.06630958]
[1728830297190,0.080331,62569.0,62568.0,0.00239677]
[1728830297583,0.075331,62569.0,62568.0,0.00239677]
[1728830299180,0.0004,62569.0,62568.0,0.08232977]
[1728830299489,0.0014,62569.0,62568.0,0.08232977]
[1728830299982,0.0014,62569.0,62568.0,0.19155997]
[1728830300584,0.07283671,62570.0,62568.0,0.27125479]
[1728830300787,0.07283671,62570.0,62569.0,0.0004]
[1728830302083,0.07383671,62570.0,62569.0,0.0074]
[1728830302793,0.002,62570.0,62569.0,0.0084]
[1728830302992,0.002,62570.0,62569.0,0.088331]
[1728830312686,0.08193,62570.0,62569.0,0.088331]
[1728830316193,0.002,62570.0,62569.0,0.10132822]
[1728830319088,0.002,62570.0,62569.0,0.088331]
[1728830319296,0.002,62570.0,62569.0,0.10132793]
[1728830320299,0.002,62570.0,62569.0,0.16505646]
[1728830320496,0.0004,62573.0,62569.0,0.10132793]
[1728830320803,0.0004,62573.0,62572.0,0.249927]
[1728830321094,0.0004,62573.0,62572.0,0.26292393]
[1728830321494,0.0004,62582.0,62572.0,0.26269175]
[1728830321696,0.0004,62582.0,62581.0,0.079916]
[1728830322695,0.080315,62582.0,62581.0,0.079916]
[1728830323198,0.081315,62582.0,62581.0,0.16661082]
[1728830324198,0.082315,62582.0,62581.0,0.16961082]
[1728830324796,0.082315,62582.0,62581.0,0.27809876]
[1728830325305,0.082315,62582.0,62581.0,0.1983851]
[1728830325705,0.082315,62582.0,62581.0,0.2782161]
[1728830325893,0.082315,62582.0,62581.0,0.1983851]
[1728830326209,0.082315,62582.0,62581.0,0.27820426]
[1728830326504,0.082315,62582.0,62581.0,0.16973516]
[1728830327094,0.082315,62582.0,62581.0,0.089916]
[1728830327295,0.082315,62582.0,62581.0,0.16973516]
[1728830327599,0.082315,62582.0,62581.0,0.089916]
[1728830327800,0.082315,62582.0,62581.0,0.16973516]
[1728830328302,0.082315,62582.0,62581.0,0.089916]
[1728830336605,0.252315,62582.0,62581.0,0.089916]
[1728830337109,0.252315,62582.0,62581.0,0.13779775]
[1728830337499,0.252315,62582.0,62581.0,0.089916]
[1728830339208,0.0024,62582.0,62581.0,0.089916]
[1728830339503,0.0024,62582.0,62581.0,0.19827049]
[1728830339703,0.0024,62582.0,62581.0,0.21126525]
[1728830340809,0.0024,62582.0,62581.0,0.21126524]
[1728830341217,0.0024,62582.0,62581.0,0.32126524]
[1728830342404,0.0024,62582.0,62581.0,0.21126524]
[1728830344411,0.0024,62582.0,62581.0,0.21124879]
[1728830345006,0.0024,62582.0,62581.0,0.10291075]
[1728830345814,0.0024,62582.0,62581.0,0.21291075]
[1728830347207,0.0024,62582.0,62581.0,0.24126253]
[1728830348116,0.0024,62582.0,62581.0,0.10291043]
[1728830348417,0.0024,62582.0,62581.0,0.09791271]
[1728830348612,0.0024,62582.0,62581.0,0.10291065]
[1728830349015,0.0024,62582.0,62581.0,0.1029108]
[1728830350915,0.0004,62583.0,62582.0,0.079915]
[1728830351120,0.0004,62583.0,62582.0,0.28106492]
[1728830351324,0.0004,62583.0,62582.0,0.20123176]
[1728830352120,0.0014,62583.0,62582.0,0.20923176]
[1728830352329,0.0024,62583.0,62582.0,0.21123176]
[1728830353613,0.0024,62583.0,62582.0,0.211134]
[1728830353819,0.0024,62583.0,62582.0,0.131219]
[1728830353820,0.192313,62583.0,62582.0,0.131219]
[1728830354015,0.082313,62583.0,62582.0,0.131219]
[1728830354217,0.082313,62583.0,62582.0,0.19809396]
[1728830354425,0.082313,62583.0,62582.0,0.1182242]
[1728830354624,0.082313,62583.0,62582.0,0.1981392]
[1728830355418,0.082313,62583.0,62582.0,0.21113374]
[1728830356131,0.082313,62583.0,62582.0,0.1981392]
[1728830357022,0.192313,62583.0,62582.0,0.1182242]
[1728830357822,0.252313,62583.0,62582.0,0.1182242]
[1728830358722,1.331673,62583.0,62582.0,0.08467939]
[1728830358922,1.331673,62583.0,62582.0,0.00480001]
[1728830359316,1.331673,62583.0,62582.0,0.06871222]
[1728830360224,1.331673,62583.0,62582.0,0.00480001]
[1728830363632,0.731673,62583.0,62582.0,0.00480001]
[1728830365930,0.252313,62583.0,62582.0,0.00480001]
[1728830366429,1.331673,62583.0,62582.0,0.00480001]
[1728830368327,1.331673,62583.0,62582.0,0.05272335]
[1728830369135,1.331673,62583.0,62582.0,0.00480001]
[1728830370038,1.331673,62583.0,62582.0,0.05272335]
[1728830373237,0.731673,62583.0,62582.0,0.05272335]
[1728830373538,1.331673,62583.0,62582.0,0.05272335]
[1728830374243,1.331673,62583.0,62582.0,0.00480001]
[1728830374433,0.252313,62583.0,62582.0,0.00480001]
[1728830374638,1.331673,62583.0,62582.0,0.00480001]
[1728830374834,0.852313,62583.0,62582.0,0.00480001]
[1728830375039,1.331673,62583.0,62582.0,0.00480001]
[1728830375640,0.252313,62583.0,62582.0,0.00480001]
[1728830375941,0.731673,62583.0,62582.0,0.05272335]
[1728830376149,0.252313,62583.0,62582.0,0.00480001]
[1728830376337,0.252313,62583.0,62582.0,0.05272335]
[1728830376536,0.731673,62583.0,62582.0,0.05272335]
[1728830376731,0.252313,62583.0,62582.0,0.05272335]
[1728830377036,1.092473,62583.0,62582.0,0.05272335]
[1728830377231,0.613113,62583.0,62582.0,0.05272335]
[1728830378541,0.443113,62583.0,62582.0,0.25471501]
[1728830378842,0.0004,62589.0,62588.0,0.079907]
[1728830379039,0.3608,62591.0,62590.0,0.079904]
[1728830379240,0.00239685,62596.0,62590.0,0.079904]
[1728830379439,0.079903,62591.0,62590.0,0.079904]
[1728830381648,0.079903,62591.0,62590.0,0.083904]
[1728830382340,0.079903,62591.0,62590.0,0.086904]
[1728830382540,0.079903,62591.0,62590.0,0.007]
[1728830382541,0.440703,62591.0,62590.0,0.007]
[1728830386353,0.47008937,62591.0,62590.0,0.007]
[1728830391952,0.10928937,62591.0,62590.0,0.007]
[1728830392155,0.47008937,62591.0,62590.0,0.007]
[1728830398855,0.47008937,62591.0,62590.0,0.05483269]
[1728830399156,0.47008937,62591.0,62590.0,0.007]
[1728830399550,0.47008937,62591.0,62590.0,0.05483269]
[1728830400955,0.47008937,62591.0,62590.0,0.007]
[1728830401162,0.249902,62593.0,62590.0,0.086904]
[1728830401354,0.249902,62593.0,62592.0,0.079902]
[1728830401864,0.21841145,62593.0,62592.0,0.079902]
[1728830402361,0.189902,62593.0,62592.0,0.079902]
[1728830403367,0.189902,62593.0,62592.0,0.081902]
[1728830404667,0.189902,62593.0,62592.0,0.082902]
[1728830409067,0.660702,62593.0,62592.0,0.003]
[1728830409368,0.660702,62593.0,62588.0,0.0004]
[1728830409369,0.079906,62589.0,62588.0,0.0004]
[1728830409553,0.189906,62589.0,62588.0,0.0004]
[1728830409753,0.190306,62589.0,62588.0,0.0004]
[1728830410571,0.191306,62589.0,62588.0,0.0054]
[1728830412268,0.192306,62589.0,62588.0,0.0074]
[1728830413362,0.192306,62589.0,62588.0,0.07117413]
[1728830415971,0.192306,62589.0,62588.0,0.0074]
[1728830418567,0.079908,62587.0,62586.0,0.063886]
[1728830418870,0.079908,62587.0,62582.0,0.0004]
[1728830418871,0.079913,62583.0,62582.0,0.0004]
[1728830419057,0.300313,62583.0,62582.0,0.0004]
[1728830419670,0.190313,62583.0,62582.0,0.0004]
[1728830420369,0.190313,62583.0,62581.0,0.0004]
[1728830420370,0.2214,62583.0,62575.0,0.04791463]
[1728830420563,0.079925,62574.0,62573.0,0.0612]
[1728830420763,0.080325,62574.0,62573.0,0.0612]
[1728830421163,0.080325,62574.0,62573.0,0.0312]
[1728830422873,0.080325,62574.0,62573.0,0.111126]
[1728830422874,0.081325,62574.0,62573.0,0.111126]
[1728830425265,0.442125,62574.0,62573.0,0.111126]
[1728830426774,0.442125,62574.0,62572.0,0.0004]
[1728830426775,0.3632,62574.0,62572.0,0.0004]
[1728830427073,0.190326,62573.0,62572.0,0.0004]
[1728830427666,0.190326,62573.0,62572.0,0.080327]
[1728830429174,0.081326,62573.0,62572.0,0.080327]
[1728830429877,0.082326,62573.0,62572.0,0.080327]
[1728830435276,0.192326,62573.0,62572.0,0.080327]
[1728830436977,0.1124,62573.0,62572.0,0.080327]
[1728830437171,0.1124,62573.0,62572.0,0.08532576]
[1728830438176,0.192326,62573.0,62572.0,0.080327]
[1728830438375,0.192326,62573.0,62572.0,0.12819384]
[1728830438575,0.192326,62573.0,62572.0,0.080327]
[1728830439287,0.192326,62573.0,62572.0,0.0004]
[1728830440085,0.192326,62573.0,62572.0,0.080327]
[1728830440272,0.082326,62573.0,62572.0,0.080327]
[1728830443382,0.082326,62573.0,62572.0,0.16008016]
[1728830443577,0.082326,62573.0,62572.0,0.26777149]
[1728830444375,0.082326,62573.0,62572.0,0.080327]
[1728830444572,0.082326,62573.0,62572.0,0.16008016]
[1728830445584,0.082326,62573.0,62572.0,0.26779789]
[1728830445780,0.082326,62573.0,62572.0,0.26780068]
[1728830446290,0.082326,62573.0,62572.0,0.18804752]
[1728830448390,0.082326,62573.0,62572.0,0.18805286]
[1728830454681,0.082326,62573.0,62572.0,0.28398958]
[1728830457693,0.082326,62573.0,62572.0,0.28405398]
[1728830458293,0.082326,62573.0,62572.0,0.18811726]
[1728830458587,0.082326,62573.0,62572.0,0.080327]
[1728830463698,0.082326,62573.0,62572.0,0.0004]
[1728830466097,0.192326,62573.0,62572.0,0.0004]
[1728830466699,0.192326,62573.0,62572.0,0.10796384]
[1728830467493,0.192326,62573.0,62572.0,0.20390056]
[1728830468196,0.082326,62573.0,62572.0,0.20390056]
[1728830468395,0.192326,62573.0,62572.0,0.20390056]
[1728830469000,0.192326,62573.0,62572.0,0.09633672]
[1728830472612,0.192326,62573.0,62572.0,0.20395478]
[1728830472907,0.192326,62573.0,62572.0,0.09633672]
[1728830475709,0.192326,62573.0,62572.0,0.17626372]
[1728830477405,0.192326,62573.0,62572.0,0.2838214]
[1728830477606,0.192326,62573.0,62572.0,0.18788468]
[1728830480811,0.192326,62573.0,62572.0,0.31615895]
[1728830481516,0.192326,62573.0,62572.0,0.31622076]
[1728830482510,0.1124,62573.0,62572.0,0.31622076]
[1728830482911,0.1124,62573.0,62572.0,0.18794465]
[1728830483110,0.0024,62573.0,62572.0,0.29794465]
[1728830483313,0.0004,62576.0,62575.0,0.079924]
[1728830483506,0.0004,62576.0,62575.0,0.42576742]
[1728830483705,0.3608,62581.0,62575.0,0.42576742]
[1728830483906,0.0004,62587.0,62582.0,0.079915]
[1728830483907,0.1104,62587.0,62582.0,0.079915]
[1728830484111,0.02899394,62585.0,62582.0,0.28339235]
[1728830484517,0.02899394,62585.0,62582.0,0.18753265]
[1728830485215,0.0004,62587.0,62582.0,0.18753265]
[1728830485415,0.0004,62587.0,62582.0,1.26689265]
[1728830485615,0.0004,62587.0,62582.0,1.39442892]
[1728830486120,0.0004,62587.0,62582.0,1.2718903]
[1728830486316,0.0004,62587.0,62586.0,0.07991]
[1728830486519,0.0004,62587.0,62586.0,0.75908686]
[1728830487115,0.0004,62587.0,62586.0,0.6633253]
[1728830487520,0.0004,62587.0,62586.0,0.69102765]
[1728830487722,0.0004,62587.0,62586.0,0.69602491]
[1728830488019,0.0004,62587.0,62586.0,0.58840726]
[1728830488428,0.0014,62587.0,62586.0,0.58840726]
[1728830489015,0.0024,62587.0,62586.0,0.58840726]
[1728830490024,0.0024,62587.0,62586.0,0.58840732]
[1728830491021,0.0024,62587.0,62586.0,0.58341]
[1728830491220,0.0004,62589.0,62586.0,0.50849727]
[1728830491425,0.0004,62589.0,62588.0,0.079907]
[1728830491932,0.0004,62589.0,62588.0,0.08490413]
[1728830492627,0.0024,62589.0,62588.0,0.09289952]
[1728830493227,0.0014,62589.0,62588.0,0.09289952]
[1728830493532,0.0024,62589.0,62588.0,0.09289952]
[1728830494221,0.0024,62589.0,62588.0,0.079907]
[1728830494421,0.0024,62589.0,62588.0,0.09289928]
[1728830495015,0.0024,62589.0,62588.0,0.10089453]
[1728830495218,0.0024,62589.0,62588.0,0.10589156]
[1728830495827,0.0024,62589.0,62588.0,0.16969256]
[1728830496032,0.0024,62589.0,62588.0,0.16158753]
[1728830496617,0.0024,62589.0,62588.0,0.10589194]
[1728830496818,0.0024,62589.0,62588.0,0.11088921]
[1728830497727,0.192306,62589.0,62588.0,0.01798931]
[1728830497932,0.192306,62589.0,62586.0,0.0004]
[1728830497933,0.079908,62587.0,62586.0,0.0004]
[1728830498123,0.190308,62587.0,62586.0,0.0004]
[1728830498526,0.551108,62587.0,62586.0,0.0004]
[1728830499028,0.552108,62587.0,62586.0,0.0014]
[1728830499227,0.553108,62587.0,62586.0,0.0014]
[1728830507731,0.443108,62587.0,62586.0,0.0014]
[1728830507935,0.663108,62587.0,62586.0,0.0014]
[1728830518043,0.663108,62587.0,62586.0,0.06511027]
[1728830520339,0.663108,62587.0,62586.0,0.0014]
[1728830524241,0.663108,62587.0,62586.0,0.06511027]
[1728830525842,0.663108,62587.0,62586.0,0.0014]
[1728830527147,0.663108,62587.0,62586.0,0.04931249]
[1728830528251,0.663108,62587.0,62586.0,0.0014]
[1728830530356,0.663108,62587.0,62586.0,0.0493654]
[1728830530653,0.663108,62587.0,62586.0,0.0014]
[1728830540058,0.663108,62587.0,62586.0,0.0341]
[1728830544454,0.07991,62586.0,62582.0,0.07583783]
[1728830544661,0.11,62583.0,62582.0,0.07583783]
[1728830544966,0.190313,62583.0,62582.0,0.07583783]
[1728830545355,0.190313,62583.0,62582.0,0.0004]
[1728830545659,0.300313,62583.0,62582.0,0.0004]
[1728830545850,0.301313,62583.0,62582.0,0.0004]
[1728830548348,0.2214,62583.0,62576.0,0.032]
[1728830548547,0.4712,62577.0,62576.0,0.032]
[1728830549959,0.4722,62577.0,62576.0,0.032]
[1728830550161,0.552121,62577.0,62576.0,0.032]
[1728830550358,0.553121,62577.0,62576.0,0.032]
[1728830553067,0.58204444,62577.0,62576.0,0.032]
[1728830556065,0.58204444,62577.0,62576.0,0.0959312]
[1728830556669,0.47204444,62577.0,62576.0,0.0959312]
[1728830556869,0.47204444,62577.0,62576.0,0.032]
[1728830558367,0.58204444,62577.0,62576.0,0.032]
[1728830560859,0.3632,62577.0,62576.0,0.32858835]
[1728830561066,0.3608,62581.0,62576.0,1.42363176]
[1728830561276,0.3608,62581.0,62580.0,0.189917]
[1728830561462,0.3608,62581.0,62580.0,0.29658335]
[1728830561868,0.3608,62581.0,62580.0,0.18658335]
[1728830562367,0.3618,62581.0,62580.0,0.18658335]
[1728830563167,0.3618,62581.0,62580.0,0.080917]
[1728830563168,0.442716,62581.0,62580.0,0.080917]
[1728830564273,0.442716,62581.0,62580.0,0.001]
[1728830568277,0.552716,62581.0,62580.0,0.001]
[1728830569776,0.552716,62581.0,62576.0,0.0004]
[1728830570075,0.300321,62577.0,62571.0,0.0037]
[1728830570270,0.190327,62572.0,62571.0,0.0027]
[1728830572678,0.191327,62572.0,62571.0,0.0027]
[1728830572880,0.192327,62572.0,62571.0,0.0037]
[1728830576275,0.22183372,62572.0,62571.0,0.0037]
[1728830583886,0.11183372,62572.0,62571.0,0.0037]
[1728830584090,0.0024,62572.0,62571.0,0.563069]
[1728830584294,0.0024,62572.0,62571.0,0.56806784]
[1728830584593,0.0024,62572.0,62571.0,0.64791871]
[1728830584793,0.0024,62572.0,62571.0,0.56806784]
[1728830585184,0.0024,62572.0,62571.0,0.563069]
[1728830585501,0.0024,62572.0,62571.0,0.083629]